fUSD/lending_fUSD_20260304
["ID","MTS","AMOUNT","RATE_DAILY","PERIOD"]
[407646271,1772604332300,-883.233165,0.00041096,120]
[407646272,1772604332358,-883.233165,0.00041096,120]
[407646273,1772604332417,-883.233165,0.00041096,120]
[407646274,1772604332476,-883.233165,0.00041096,120]
[407646275,1772604332539,-883.233165,0.00041096,120]
[407646276,1772604332600,-883.233165,0.00041096,120]
[407646277,1772604332659,-883.233165,0.00041096,120]
[407646278,1772604332721,-228.637455,0.00041096,120]
[407646279,1772604332780,-151.0,0.00041096,120]
[407646280,1772604332838,-151.0,0.00041096,120]
[407646281,1772604332895,-151.0,0.00041096,120]
[407646282,1772604332952,-151.0,0.00041096,120]
[407646283,1772604333008,-151.0,0.00041096,120]
[407646284,1772604333066,-271.042146,0.00041096,120]
[407646285,1772604333125,-188.32737359,0.000413,30]
[407646286,1772604333182,-150.0,0.00041452,120]
[407646287,1772604333241,-311.08,0.00041452,120]
[407646288,1772604333300,-156.0,0.000415,120]
[407646289,1772604333357,-151.0,0.000415,120]
[407646290,1772604333413,-276.44125849,0.000415,120]
[407646291,1772604333469,-1736.0,0.00042,120]
[407646292,1772604333528,-182.72800181,0.00042,30]
[407646293,1772604333587,-5402.93896476,0.00042,120]
[407646294,1772604333642,-2064.0,0.00042,30]
[407646295,1772604333697,-533.0,0.00042,30]
[407646296,1772604333757,-643.27945649,0.00042,120]
[407646297,1772604333813,-182.4,0.000421,120]
[407646298,1772604333922,-150.0,0.00042173,120]
[407646299,1772604333980,-274.8,0.000428,60]
[407646300,1772604334044,-150.30469935,0.00042877,104]
[407646301,1772604334103,-151.0,0.00043,120]
[407646302,1772604334162,-297.49740027,0.00043,120]
[407646303,1772604334221,-1697.0,0.00043,120]
[407646304,1772604334280,-784.0,0.00043,120]
[407646305,1772604334340,-400.0,0.00043068,120]
[407646306,1772604334405,-400.0,0.00043068,120]
[407646307,1772604334646,-400.0,0.00043068,120]
[407646308,1772604334705,-400.0,0.00043068,120]
[407646309,1772604334768,-156.0,0.000431,120]
[407646310,1772604334826,-300.040716,0.0004352,115]
[407646311,1772604334885,-261.91644851,0.00043808,120]
[407646312,1772604334948,-1999.0,0.00043835,120]
[407646313,1772604335005,-20000.0,0.00043836,120]
[407646314,1772604335065,-500.0,0.00043836,120]
[407646315,1772604335127,-163.08,0.0004384,120]
[407646316,1772604335192,-500.0,0.00043891,120]
[407646317,1772604335253,-151.1756794,0.000439,120]
[407646318,1772604335316,-500.0,0.00043946,120]
[407646319,1772604335378,-156.27641969,0.00044,120]
[407646320,1772604335437,-5070.0,0.00044,120]
[407646321,1772604335498,-163.0,0.00044,120]
[407646322,1772604335558,-348.3708169,0.00044,30]
[407646323,1772604335619,-9875.9,0.00044,30]
[407646324,1772604335679,-937.47134712,0.00044,120]
[407646325,1772604335739,-562.715164,0.00044,57]
[407646326,1772604335801,-538.20448934,0.00044,120]
[407646327,1772604335862,-150.0,0.00044281,120]
[407646328,1772604335927,-4352.9774,0.00044396,30]
[407646329,1772604335990,-151.0,0.000444,120]
[407646330,1772604336055,-150.0,0.00044521,120]
[407646331,1772604336119,-156.0,0.000446,120]
[407646332,1772604336189,-1035.08,0.00044657,120]
[407646333,1772604336256,-500.0,0.00045,120]
[407646334,1772604336314,-150.0,0.00045,85]
[407646335,1772604336373,-2933.54,0.00045,120]
[407646336,1772604336431,-168.65798864,0.00045,120]
[407646337,1772604336491,-3296.569756,0.00045,120]
[407646338,1772604336551,-1007.49659751,0.00045,120]
[407646339,1772604336609,-2953.0,0.00045,30]
[407646340,1772604336664,-16980.45076781,0.00045,120]
[407646341,1772604336722,-1697.0,0.00045,120]
[407646342,1772604336779,-784.0,0.00045,120]
[407646343,1772604336837,-175.6,0.00045,30]
[407646344,1772604336894,-3635.24,0.00045,30]
[407646345,1772604336950,-198.31,0.000452,120]
[407646346,1772604337007,-150.7751124,0.0004537,120]
[407646347,1772604337066,-459.97215114,0.00045888,120]
[407646348,1772604337121,-500.0,0.00045898,30]
[407646349,1772604337177,-500.0,0.00045898,30]
[407646350,1772604337234,-500.0,0.00045898,30]
[407646351,1772604337290,-628.33265122,0.00045898,30]
[407646352,1772604337345,-295.233,0.00045898,30]
[407646353,1772604337400,-151.0,0.000459,120]
[407646354,1772604337460,-163.0,0.00046,120]
[407646355,1772604337518,-783.9329365,0.00046,30]
[407646356,1772604337576,-206.38846321,0.00046,120]
[407646357,1772604337635,-150.0,0.0004603,120]
[407646358,1772604337691,-150.0,0.00046193,120]
[407646359,1772604337747,-156.0,0.000462,120]
[407646360,1772604337803,-176.0047684,0.00046242,120]
[407646361,1772604337859,-150.0,0.00046301,120]
[407646362,1772604337915,-221.11195225,0.000464,120]
[407646363,1772604337968,-194.84222503,0.000464,120]
[407646364,1772604338026,-800.0,0.00046419,33]
[407646365,1772604338081,-177.30663628,0.00046453,120]
[407646366,1772604338136,-150.0,0.00046495,120]
[407646367,1772604338192,-180.80086717,0.000465,120]
[407646368,1772604338250,-108110.049413,0.000466,53]
[407646369,1772604338304,-1633.62278945,0.000466,120]
[407646370,1772604338361,-5000000.0,0.000466,120]
[407646371,1772604338421,-151.0,0.000466,120]
[407646372,1772604338485,-151.0,0.000466,120]
[407646373,1772604338545,-151.0,0.000466,120]
[407646374,1772604338609,-281.520934,0.000466,120]
[407646375,1772604338673,-281.520934,0.000466,120]
[407646376,1772604338735,-281.520934,0.000466,120]
[407646377,1772604338799,-281.520934,0.000466,120]
[407646378,1772604338864,-883.233165,0.000466,120]
[407646379,1772604338930,-883.233165,0.000466,120]
[407646380,1772604338997,-883.233165,0.000466,120]
[407646381,1772604339066,-883.233165,0.000466,120]
[407646382,1772604339132,-151.0,0.000466,120]
[407646383,1772604339198,-1499.271441,0.000466,120]
[407646384,1772604339262,-1499.271441,0.000466,120]
[407646385,1772604339325,-1499.271441,0.000466,120]
[407646386,1772604339391,-1499.271441,0.000466,120]
[407646387,1772604339460,-150.0,0.00046693,120]
[407646388,1772604339523,-3293.11,0.000468,120]
[407646389,1772604339583,-196.2736,0.0004681,30]
[407646390,1772604339645,-1961.36748653,0.00046818,30]
[407646391,1772604339708,-519.05,0.00046823,30]
[407646392,1772604339767,-178.4304,0.00046827,30]
[407646393,1772604339832,-38785.98178022,0.00046829,30]
[407646394,1772604339892,-196.2736,0.00046832,30]
[407646395,1772604339967,-400.0,0.00046835,60]
[407646396,1772604340032,-1500.0,0.00046835,30]
[407646397,1772604340095,-426.90241778,0.00046835,60]
[407646398,1772604340163,-2171.20137993,0.00046835,30]
[407646399,1772604340227,-1246.75,0.00046835,30]
[407646400,1772604340289,-575.74,0.00046835,30]
[407646401,1772604340350,-1263.69,0.00046835,30]
[407646402,1772604340413,-151.0,0.00046835,120]
[407646403,1772604340476,-151.0,0.00046835,120]
[407646404,1772604340538,-151.0,0.00046835,120]
[407646405,1772604340599,-151.0,0.00046835,30]
[407646406,1772604340662,-281.520934,0.00046835,120]
[407646407,1772604340724,-281.520934,0.00046835,120]
[407646408,1772604340785,-281.520934,0.00046835,120]
[407646409,1772604340846,-281.520933,0.00046835,120]
[407646410,1772604340906,-883.233165,0.00046835,120]
[407646411,1772604340965,-883.233165,0.00046835,120]
[407646412,1772604341023,-883.233165,0.00046835,120]
[407646413,1772604341086,-883.233157,0.00046835,120]
[407646414,1772604341150,-200.0,0.00046835,120]
[407646415,1772604341213,-200.0,0.00046835,120]
[407646416,1772604341275,-200.0,0.00046835,120]
[407646417,1772604341335,-200.0,0.00046835,120]
[407646418,1772604341398,-200.0,0.00046835,120]
[407646419,1772604341466,-200.0,0.00046835,120]
[407646420,1772604341533,-284.76,0.00046835,120]
[407646421,1772604341599,-151.0,0.00046835,120]
[407646422,1772604341661,-1499.271441,0.00046835,120]
[407646423,1772604341719,-1499.271441,0.00046835,120]
[407646424,1772604341775,-3184.5962,0.00046835,120]
[407646425,1772604341831,-1499.271441,0.00046835,120]
[407646426,1772604341886,-1499.27145,0.00046835,120]
[407646427,1772604341941,-823.0,0.00046835,60]
[407646428,1772604341995,-733.0,0.00046835,60]
[407646429,1772604342050,-165.16,0.00046836,30]
[407646430,1772604342108,-178.4304,0.0004685,30]
[407646431,1772604342167,-150.0,0.00046899,120]
[407646432,1772604342229,-151.99792162,0.000469,120]
[407646433,1772604342303,-150.0,0.00047,120]
[407646434,1772604342366,-1697.0,0.00047,120]
[407646435,1772604342656,-784.0,0.00047,120]
[407646436,1772604342729,-3437.27317514,0.00047,120]
[407646437,1772604342791,-151.5,0.00047093,60]
[407646438,1772604342856,-507.0,0.000471,31]
[407646439,1772604342930,-3293.11,0.00047229,120]
[407646440,1772604342992,-175.6,0.0004725,30]
[407646441,1772604343061,-3635.24,0.0004725,30]
[407646442,1772604343129,-151.5,0.00047342,60]
[407646443,1772604343199,-151.0,0.000474,120]
[407646444,1772604343266,-151.5,0.00047553,60]
[407646445,1772604343328,-151.5,0.0004762,60]
[407646446,1772604343391,-3293.11,0.00047659,120]
[407646447,1772604343452,-151.5,0.00047675,60]
[407646448,1772604343516,-156.0,0.000477,120]
[407646449,1772604343592,-150.0,0.00047728,120]
[407646450,1772604343656,-150.0,0.00047798,120]
[407646451,1772604343719,-221.11195225,0.000478,120]
[407646452,1772604343781,-194.84222503,0.000478,120]
[407646453,1772604343849,-150.99627764,0.00047863,120]
[407646454,1772604343912,-151.5,0.00047894,60]
[407646455,1772604343969,-151.5,0.00047897,60]
[407646456,1772604344030,-365.4727,0.000479,90]
[407646457,1772604344086,-151.5,0.00047969,60]
[407646458,1772604344144,-340.0,0.00048,120]
[407646459,1772604344200,-1683.20603963,0.00048,120]
[407646460,1772604344257,-179.0,0.00048,30]
[407646461,1772604344313,-206.38846321,0.00048,120]
[407646462,1772604344372,-150.0,0.00048038,120]
[407646463,1772604344429,-3293.11,0.00048088,120]
[407646464,1772604344485,-2161.10394929,0.000483,120]
[407646465,1772604344546,-3293.11,0.00048518,120]
[407646466,1772604344606,-151.5,0.00048723,60]
[407646467,1772604344665,-1208.07,0.00048768,120]
[407646468,1772604344721,-3596.30597234,0.000488,120]
[407646469,1772604344777,-3003.299999,0.000488,120]
[407646470,1772604344833,-150.0,0.0004882,120]
[407646471,1772604344900,-4429.40263255,0.00048888,120]
[407646472,1772604344973,-151.0,0.000489,120]
[407646473,1772604345035,-3293.11,0.00048947,120]
[407646474,1772604345093,-163.0,0.00049,120]
[407646475,1772604345151,-150.0,0.00049,120]
[407646476,1772604345209,-1697.0,0.00049,120]
[407646477,1772604345264,-784.0,0.00049,120]
[407646478,1772604345322,-150.0,0.00049112,120]
[407646479,1772604345381,-150.0,0.0004919,120]
[407646480,1772604345440,-151.5,0.00049193,60]
[407646481,1772604345496,-156.0,0.000492,120]
[407646482,1772604345553,-151.5,0.00049257,60]
[407646483,1772604345611,-277.86228343,0.0004937,120]
[407646484,1772604345669,-3293.11,0.00049377,120]
[407646485,1772604345725,-478.76523956,0.00049449,120]
[407646486,1772604345785,-150.0,0.00049479,120]
[407646487,1772604345843,-150.0,0.00049508,120]
[407646488,1772604345903,-3635.24,0.00049613,30]
[407646489,1772604345960,-151.5,0.00049628,60]
[407646490,1772604346019,-151.5,0.0004977,60]
[407646491,1772604346078,-151.5,0.00049789,60]
[407646492,1772604346137,-86899.0,0.000498,90]
[407646493,1772604346199,-3293.11,0.00049806,120]
[407646494,1772604346260,-150.0,0.00049865,120]
[407646495,1772604346320,-150.0,0.00049877,120]
[407646496,1772604346380,-500.0,0.000499,120]
[407646497,1772604346444,-50000.0,0.000499,120]
[407646498,1772604346503,-3196.15176633,0.0004999,120]
[407646499,1772604346564,-4500.0,0.0005,120]
[407646500,1772604346622,-4500.0,0.0005,120]
[407646501,1772604346680,-473.0,0.0005,120]
[407646502,1772604346736,-2701.48,0.0005,120]
[407646503,1772604346792,-3874.0,0.0005,30]
[407646504,1772604346850,-2933.54,0.0005,120]
[407646505,1772604346907,-300.0,0.0005,120]
[407646506,1772604346964,-155.7246574,0.0005,120]
[407646507,1772604347023,-677.913393,0.0005,120]
[407646508,1772604347079,-327.36,0.0005,120]
[407646509,1772604347136,-301.38089241,0.0005,120]
[407646510,1772604347194,-3812.09,0.0005,120]
[407646511,1772604347252,-226.0,0.0005,120]
[407646512,1772604347315,-2020.06,0.0005,120]
[407646513,1772604347382,-150.0,0.0005,40]
[407646514,1772604347441,-256.28518834,0.0005,120]
[407646515,1772604347504,-10000.0,0.0005,120]
[407646516,1772604347563,-874.05688403,0.0005,120]
[407646517,1772604347622,-3344.08499627,0.0005,120]
[407646518,1772604347678,-3027.01180112,0.0005,120]
[407646519,1772604347735,-2528.75682753,0.0005,120]
[407646520,1772604347799,-600.0,0.0005,120]
[407646521,1772604347854,-307.46088935,0.0005,120]
[407646522,1772604347910,-185.07074802,0.0005,120]
[407646523,1772604347965,-151.5,0.0005009,60]
[407646524,1772604348023,-151.5,0.00050117,60]
[407646525,1772604348081,-150.0,0.00050128,120]
[407646526,1772604348139,-151.5,0.00050172,60]
[407646527,1772604348196,-151.5,0.00050211,60]
[407646528,1772604348254,-151.5,0.00050232,60]
[407646529,1772604348312,-3293.11,0.00050235,120]
[407646530,1772604348368,-151.24552544,0.00050357,120]
[407646531,1772604348423,-151.0,0.000504,120]
[407646532,1772604348485,-50000.0,0.000505,120]
[407646533,1772604348548,-150.0,0.00050589,120]
[407646534,1772604348605,-150.0,0.00050627,120]
[407646535,1772604348665,-3293.11,0.00050665,120]
[407646536,1772604348903,-3100.0,0.00050685,120]
[407646537,1772604348964,-156.0,0.000508,120]
[407646538,1772604349033,-150.0,0.00050883,120]
[407646539,1772604349097,-150.0,0.00050896,120]
[407646540,1772604349159,-151.0,0.00050999,120]
[407646541,1772604349221,-20000.0,0.00051,120]
[407646542,1772604349291,-3678.44883568,0.00051,61]
[407646543,1772604349350,-150.0,0.00051,120]
[407646544,1772604349408,-5287.62,0.00051,30]
[407646545,1772604349467,-412.77692642,0.00051,120]
[407646546,1772604349529,-150.0,0.00051,40]
[407646547,1772604349593,-50000.0,0.00051,120]
[407646548,1772604349651,-1697.0,0.00051,120]
[407646549,1772604349710,-784.0,0.00051,120]
[407646550,1772604349770,-3293.11,0.00051094,120]
[407646551,1772604349828,-50000.0,0.000511,120]
[407646552,1772604349886,-50000.0,0.0005115,120]
[407646553,1772604349945,-50000.0,0.000512,120]
[407646554,1772604350006,-40793.0,0.0005125,120]
[407646555,1772604350065,-50000.0,0.000515,120]
[407646556,1772604350125,-9059.82581704,0.000515,120]
[407646557,1772604350183,-3293.11,0.00051524,120]
[407646558,1772604350241,-150.0,0.00051565,120]
[407646559,1772604350299,-150.0,0.00051635,120]
[407646560,1772604350355,-347.0,0.000518,120]
[407646561,1772604350411,-151.0,0.000518,120]
[407646562,1772604350466,-150.0,0.00051844,120]
[407646563,1772604350521,-150.0,0.00051852,120]
[407646564,1772604350577,-80048.00000093,0.00051888,120]
[407646565,1772604350635,-800.0,0.00051898,35]
[407646566,1772604350692,-3293.11,0.00051953,120]
[407646567,1772604350748,-305.51438849,0.00052,30]
[407646568,1772604350804,-150.0,0.00052,120]
[407646569,1772604350863,-300.0,0.00052,120]
[407646570,1772604350920,-1968.5773088,0.00052,120]
[407646571,1772604350980,-1015.0,0.00052,120]
[407646572,1772604351041,-167.0,0.00052,40]
[407646573,1772604351105,-50000.0,0.00052,120]
[407646574,1772604351171,-5771.8337621,0.00052,60]
[407646575,1772604351232,-5249.09783792,0.00052,120]
[407646576,1772604351291,-2738.43268745,0.00052,120]
[407646577,1772604351355,-500.0,0.00052054,120]
[407646578,1772604351417,-500.0,0.00052054,120]
[407646579,1772604351476,-500.0,0.00052054,120]
[407646580,1772604351535,-500.0,0.00052054,120]
[407646581,1772604351594,-500.0,0.00052054,120]
[407646582,1772604351653,-500.0,0.00052054,120]
[407646583,1772604351710,-648.61501523,0.00052054,120]
[407646584,1772604351768,-500.0,0.00052054,120]
[407646585,1772604351828,-181.39713169,0.00052054,120]
[407646586,1772604351885,-5000.0,0.00052055,120]
[407646587,1772604351941,-153.19702547,0.00052057,30]
[407646588,1772604351994,-3635.24,0.00052093,30]
[407646589,1772604352051,-151.5,0.00052254,60]
[407646590,1772604352107,-156.0,0.000523,120]
[407646591,1772604352165,-3293.11,0.00052382,120]
[407646592,1772604352221,-2519.91345291,0.000524,120]
[407646593,1772604352274,-151.5,0.00052479,60]
[407646594,1772604352328,-56267.48982438,0.000525,45]
[407646595,1772604352389,-50000.0,0.000525,50]
[407646596,1772604352446,-50000.0,0.000525,55]
[407646597,1772604352500,-50000.0,0.000525,60]
[407646598,1772604352555,-50000.0,0.000525,90]
[407646599,1772604352610,-151.0,0.00052603,120]
[407646600,1772604352664,-151.0,0.00052603,120]
[407646601,1772604352718,-151.0,0.00052603,120]
[407646602,1772604352771,-151.0,0.00052603,120]
[407646603,1772604352824,-151.0,0.00052603,120]
[407646604,1772604352876,-151.0,0.00052603,120]
[407646605,1772604352930,-151.0,0.00052603,120]
[407646606,1772604352986,-151.0,0.00052603,120]
[407646607,1772604353040,-151.0,0.00052603,120]
[407646608,1772604353096,-151.0,0.00052603,120]
[407646609,1772604353153,-240.443863,0.00052603,120]
[407646610,1772604353213,-150.0,0.00052644,120]
[407646611,1772604353271,-150.0,0.00052767,120]
[407646612,1772604353328,-5557.11,0.000528,120]
[407646613,1772604353384,-3293.11,0.00052812,120]
[407646614,1772604353440,-151.28991724,0.0005285,120]
[407646615,1772604353495,-3840.12294685,0.00052888,120]
[407646616,1772604353548,-151.5,0.00052901,60]
[407646617,1772604353601,-151.5,0.00052951,60]
[407646618,1772604353655,-150.0,0.00053,120]
[407646619,1772604353711,-100099.0,0.00053,120]
[407646620,1772604353766,-26404.5499225,0.00053,120]
[407646621,1772604353823,-4281.0,0.00053,120]
[407646622,1772604353880,-207491.62,0.00053,30]
[407646623,1772604353939,-1697.0,0.00053,120]
[407646624,1772604353996,-784.0,0.00053,120]
[407646625,1772604354053,-150.0,0.00053128,120]
[407646626,1772604354109,-151.5,0.00053149,60]
[407646627,1772604354169,-1234.0,0.00053197,120]
[407646628,1772604354227,-3293.11,0.00053241,120]
[407646629,1772604354282,-151.5,0.00053247,60]
[407646630,1772604354338,-150.0,0.00053256,120]
[407646631,1772604354392,-151.0,0.000533,120]
[407646632,1772604354446,-150.0,0.0005337,120]
[407646633,1772604354504,-150.0,0.00053401,120]
[407646634,1772604354560,-1000.0,0.00053482,60]
[407646635,1772604354613,-2700.0,0.00053482,60]
[407646636,1772604354668,-1556.16258901,0.000535,120]
[407646637,1772604354726,-151.5,0.0005353,60]
[407646638,1772604354783,-150.0,0.00053604,30]
[407646639,1772604354841,-729.65718811,0.00053604,30]
[407646640,1772604355052,-150.0,0.00053604,30]
[407646641,1772604355115,-278.16735411,0.00053604,30]
[407646642,1772604355173,-150.0,0.00053604,30]
[407646643,1772604355230,-3225.81760522,0.00053604,30]
[407646644,1772604355287,-3293.11,0.00053671,120]
[407646645,1772604355344,-151.5,0.00053752,60]
[407646646,1772604355403,-1000.0,0.00053756,60]
[407646647,1772604355468,-151.5,0.0005377,60]
[407646648,1772604355543,-151.5,0.00053775,60]
[407646649,1772604355600,-2773.98896,0.000538,45]
[407646650,1772604355657,-567.7,0.00053801,120]
[407646651,1772604355714,-151.5,0.00053827,60]
[407646652,1772604355771,-156.0,0.000539,120]
[407646653,1772604355828,-1429.67041522,0.000539,120]
[407646654,1772604355886,-3590.70446726,0.000539,120]
[407646655,1772604355945,-2113.452,0.00053989,80]
[407646656,1772604356002,-4478.76563964,0.00053995,120]
[407646657,1772604356059,-500.2,0.00054,120]
[407646658,1772604356119,-609.68051002,0.00054,30]
[407646659,1772604356177,-150.0,0.00054,120]
[407646660,1772604356236,-300.0,0.00054,120]
[407646661,1772604356294,-9875.9,0.00054,30]
[407646662,1772604356349,-523.17,0.00054,120]
[407646663,1772604356410,-981.14591655,0.00054,120]
[407646664,1772604356470,-515.97115803,0.00054,120]
[407646665,1772604356531,-2443.12904427,0.00054,120]
[407646666,1772604356590,-23648.46,0.0005401,120]
[407646667,1772604356649,-1000.0,0.0005403,60]
[407646668,1772604356705,-2700.0,0.0005403,60]
[407646669,1772604356761,-3293.11,0.000541,120]
[407646670,1772604356817,-567.7,0.00054153,120]
[407646671,1772604356871,-150.0,0.0005418,120]
[407646672,1772604356925,-165.9618001,0.00054288,120]
[407646673,1772604356978,-263.02559471,0.000543,120]
[407646674,1772604357037,-1000.0,0.00054304,60]
[407646675,1772604357092,-2303.29850012,0.0005432,78]
[407646676,1772604357148,-500.0,0.0005433,120]
[407646677,1772604357203,-151.5,0.00054364,60]
[407646678,1772604357260,-157.25618021,0.00054369,120]
[407646679,1772604357317,-151.5,0.00054441,60]
[407646680,1772604357378,-151.5,0.00054475,60]
[407646681,1772604357444,-74465.77911077,0.000545,120]
[407646682,1772604357500,-9551.00566688,0.000545,120]
[407646683,1772604357557,-2346.13466149,0.000545,120]
[407646684,1772604357613,-567.7,0.00054505,120]
[407646685,1772604357668,-3293.11,0.0005453,120]
[407646686,1772604357722,-1000.0,0.00054578,60]
[407646687,1772604357776,-2700.0,0.00054578,60]
[407646688,1772604357831,-151.5,0.00054578,60]
[407646689,1772604357886,-151.5,0.00054582,60]
[407646690,1772604357940,-1347.43347587,0.00054658,120]
[407646691,1772604357995,-611.81926337,0.00054659,120]
[407646692,1772604358049,-7431.14739961,0.0005466,120]
[407646693,1772604358104,-1751.89744317,0.00054661,120]
[407646694,1772604358161,-223.60890179,0.00054684,120]
[407646695,1772604358228,-252.15805865,0.00054685,120]
[407646696,1772604358283,-5497.14795749,0.00054685,120]
[407646697,1772604358339,-1854011.74391583,0.0005469,120]
[407646698,1772604365212,-150.328,0.00043272,30]
[407646699,1772604365275,-150.328,0.00043281,30]
[407646700,1772604365349,-108110.049413,0.00046836,53]
[407646701,1772604365427,-300.041405,0.00049998,120]
[407646702,1772604365494,-1103.0,0.00052453,120]
[407646703,1772604365555,-150.0,0.00053604,30]
[407646704,1772604365627,-151.0,0.0005469,30]
[407646705,1772604365689,-800.0,0.00054794,120]
[407646706,1772604365927,-800.0,0.00054794,120]
[407646707,1772604365993,-800.0,0.00054794,120]
[407646708,1772604366063,-420.4594797,0.00054794,120]
[407646709,1772604366130,-500.0,0.00054794,120]
[407646710,1772604366195,-500.0,0.00054794,120]
[407646711,1772604366258,-292.26281804,0.00054794,120]
[407646712,1772604366317,-182.84475589,0.00054794,120]
[407646713,1772604366377,-250.0,0.00054794,30]
[407646714,1772604366437,-250.0,0.00054794,34]
[407646715,1772604366500,-250.0,0.00054794,60]
[407646716,1772604366559,-2208.17,0.00054794,120]
[407646717,1772604366615,-2208.17,0.00054794,120]
[407646718,1772604366671,-2208.17,0.00054794,120]
[407646719,1772604366726,-2208.17,0.00054794,120]
[407646720,1772604366780,-2208.17,0.00054794,120]
[407646721,1772604366836,-2208.17,0.00054794,120]
[407646722,1772604366898,-2208.17,0.00054794,120]
[407646723,1772604366954,-2208.17,0.00054794,120]
[407646724,1772604367013,-2208.17,0.00054794,120]
[407646725,1772604367070,-2208.17,0.00054794,120]
[407646726,1772604367130,-2208.17,0.00054794,120]
[407646727,1772604367189,-2208.17,0.00054794,120]
[407646728,1772604367250,-2208.17,0.00054794,120]
[407646729,1772604367311,-2208.17,0.00054794,120]
[407646730,1772604367372,-2208.17,0.00054794,120]
[407646731,1772604367431,-2208.17,0.00054794,120]
[407646732,1772604367491,-2208.17,0.00054794,120]
[407646733,1772604367563,-2208.17,0.00054794,120]
[407646734,1772604367622,-2208.17,0.00054794,120]
[407646735,1772604367682,-2208.17,0.00054794,120]
[407646736,1772604367744,-2208.17,0.00054794,120]
[407646737,1772604367806,-2208.17,0.00054794,120]
[407646738,1772604367868,-2208.17,0.00054794,120]
[407646739,1772604367926,-2208.1978366,0.00054794,120]
[407646740,1772604367982,-1000.0,0.00054794,120]
[407646741,1772604368041,-1000.0,0.00054794,120]
[407646742,1772604368104,-1000.0,0.00054794,120]
[407646743,1772604368166,-1000.0,0.00054794,120]
[407646744,1772604368223,-1000.0,0.00054794,120]
[407646745,1772604368282,-1000.0,0.00054794,120]
[407646746,1772604368341,-1000.0,0.00054794,120]
[407646747,1772604368401,-1000.0,0.00054794,120]
[407646748,1772604368461,-1000.0,0.00054794,120]
[407646749,1772604368520,-1000.0,0.00054794,120]
[407646750,1772604368580,-1000.0,0.00054794,120]
[407646751,1772604368639,-1000.0,0.00054794,120]
[407646752,1772604368699,-510.175,0.00054794,120]
[407646753,1772604368759,-5148.84367265,0.00054794,30]
[407646754,1772604368820,-4950.0,0.00054795,30]
[407646755,1772604368881,-150.0,0.00054795,120]
[407646756,1772604368941,-150.0,0.00054795,120]
[407646757,1772604369002,-259.34558334,0.00054795,120]
[407646758,1772604369065,-150.0,0.00054795,120]
[407646759,1772604369268,215.73691319,0.00054794,30]
[407646760,1772604369347,192.11872662,0.00046544,120]
[407646761,1772604371251,553.72575049,0.00053604,30]
[407646762,1772604372657,500.0,0.00054794,30]
[407646763,1772604372817,500.0,0.00054794,30]
[407646764,1772604372991,500.0,0.00054794,30]
[407646765,1772604373057,500.0,0.00054794,30]
[407646766,1772604373154,164.43684458,0.00054794,30]
[407646767,1772604373216,500.0,0.00054794,30]
[407646768,1772604373357,150.0,0.00054794,30]
[407646769,1772604373420,500.0,0.00054794,30]
[407646770,1772604373523,150.0,0.00054794,30]